fUSD/lending_fUSD_20250313
["ID","MTS","AMOUNT","RATE_DAILY","PERIOD"]
[356111388,1741909922366,-500.0,0.00025465,2]
[356111389,1741909922375,-1886.33,0.00025465,3]
[356111390,1741909922385,-500.0,0.00025465,3]
[356111391,1741909922395,-1603.3,0.00025465,3]
[356111392,1741909922404,-500.0,0.00025465,3]
[356111393,1741909922414,-1399.34,0.00025465,3]
[356111394,1741909922424,-507.55,0.00025465,3]
[356111395,1741909922434,-623.52228275,0.00025465,3]
[356111396,1741909922444,-500.0,0.00025465,3]
[356111397,1741909922459,-500.0,0.00025465,3]
[356111398,1741909922468,-500.0,0.00025465,3]
[356111399,1741909922478,-1162.37,0.00025465,3]
[356111400,1741909922488,-503.04,0.00025465,3]
[356111401,1741909922499,-637.46,0.00025465,3]
[356111402,1741909922511,-500.0,0.00025465,3]
[356111403,1741909922520,-500.0,0.00025465,3]
[356111404,1741909922531,-500.0,0.00025465,3]
[356111405,1741909922540,-1799.26,0.00025465,3]
[356111406,1741909922551,-531.4,0.00025465,3]
[356111407,1741909922560,-1038.47,0.00025465,3]
[356111408,1741909922570,-500.0,0.00025465,3]
[356111409,1741909922580,-500.0,0.00025465,3]
[356111410,1741909922589,-1488.89,0.00025465,3]
[356111411,1741909922599,-509.79,0.00025465,3]
[356111412,1741909922608,-1529.19,0.00025465,3]
[356111413,1741909922617,-1146.19,0.00025465,3]
[356111414,1741909922626,-1616.56,0.00025465,3]
[356111415,1741909922636,-1230.07,0.00025465,3]
[356111416,1741909922645,-500.0,0.00025465,3]
[356111417,1741909922655,-269.86,0.00025465,3]
[356111418,1741909922665,-500.0,0.00025465,3]
[356111419,1741909922674,-500.0,0.00025465,3]
[356111420,1741909922683,-503.06,0.00025465,3]
[356111421,1741909922693,-828.77,0.00025465,3]
[356111422,1741909922702,-566.59,0.00025465,3]
[356111423,1741909922711,-766.89,0.00025465,3]
[356111424,1741909922721,-877.86,0.00025465,3]
[356111425,1741909922730,-1515.34,0.00025465,3]
[356111426,1741909922741,-500.0,0.00025465,3]
[356111427,1741909922751,-974.37,0.00025465,3]
[356111428,1741909922762,-637.9,0.00025465,3]
[356111429,1741909922771,-878.52,0.00025465,3]
[356111430,1741909922782,-531.99195115,0.00025465,3]
[356111431,1741909922791,-500.0,0.00025465,3]
[356111432,1741909922801,-581.67,0.00025465,3]
[356111433,1741909922811,-1951.21,0.00025465,3]
[356111434,1741909922821,-500.0,0.00025465,3]
[356111435,1741909922831,-2023.2,0.00025465,3]
[356111436,1741909922840,-2022.67,0.00025465,3]
[356111437,1741909922850,-1071.52,0.00025465,3]
[356111438,1741909922860,-1319.48,0.00025465,3]
[356111439,1741909922870,-1318.79,0.00025465,3]
[356111440,1741909922879,-817.82,0.00025465,3]
[356111441,1741909922889,-1858.28,0.00025465,3]
[356111442,1741909922899,-500.0,0.00025465,3]
[356111443,1741909922908,-500.0,0.00025465,3]
[356111444,1741909922917,-500.0,0.00025465,3]
[356111445,1741909922927,-1341.33,0.00025465,3]
[356111446,1741909922937,-500.0,0.00025465,3]
[356111447,1741909922947,-500.0,0.00025465,3]
[356111448,1741909922956,-1345.3,0.00025465,3]
[356111449,1741909922966,-500.0,0.00025465,2]
[356111450,1741909922976,-1005.07,0.00025465,3]
[356111451,1741909922986,-2009.8,0.00025465,3]
[356111452,1741909922996,-500.0,0.00025465,3]
[356111453,1741909923007,-500.0,0.00025465,3]
[356111454,1741909923018,-761.68,0.00025465,3]
[356111455,1741909923028,-1194.67,0.00025465,3]
[356111456,1741909923038,-3283.37,0.00025465,3]
[356111457,1741909923049,-1173.33,0.00025465,3]
[356111458,1741909923059,-500.0,0.00025465,3]
[356111459,1741909923069,-647.14,0.00025465,3]
[356111460,1741909923080,-610.98,0.00025465,3]
[356111461,1741909923090,-1389.09,0.00025465,3]
[356111462,1741909923101,-558.82,0.00025465,3]
[356111463,1741909923112,-535.09,0.00025465,3]
[356111464,1741909923122,-1705.22,0.00025465,3]
[356111465,1741909923132,-792.15,0.00025465,3]
[356111466,1741909923142,-1894.67,0.00025465,3]
[356111467,1741909923152,-1930.42,0.00025465,3]
[356111468,1741909923163,-573.45,0.00025465,3]
[356111469,1741909923172,-4252.22,0.00025465,3]
[356111470,1741909923182,-1350.01,0.00025465,3]
[356111471,1741909923191,-500.0,0.00025465,3]
[356111472,1741909923201,-957.24,0.00025465,3]
[356111473,1741909923211,-813.96,0.00025465,3]
[356111474,1741909923221,-500.0,0.00025465,3]
[356111475,1741909923231,-500.0,0.00025465,3]
[356111476,1741909923242,-500.0,0.00025465,3]
[356111477,1741909923255,-666.36,0.00025465,3]
[356111478,1741909923266,-1214.54,0.00025465,3]
[356111479,1741909923278,-659.78,0.00025465,3]
[356111480,1741909923288,-740.67,0.00025465,3]
[356111481,1741909923298,-500.0,0.00025465,3]
[356111482,1741909923308,-1011.7,0.00025465,3]
[356111483,1741909923318,-1446.01,0.00025465,3]
[356111484,1741909923329,-509.81,0.00025465,3]
[356111485,1741909923339,-500.0,0.00025465,3]
[356111486,1741909923348,-506.61,0.00025465,3]
[356111487,1741909923358,-1624.15,0.00025465,3]
[356111488,1741909923368,-1714.12,0.00025465,3]
[356111489,1741909923378,-1542.57,0.00025465,3]
[356111490,1741909923388,-1453.97,0.00025465,3]
[356111491,1741909923398,-679.28,0.00025465,3]
[356111492,1741909923408,-511.82,0.00025465,3]
[356111493,1741909923418,-732.6,0.00025465,3]
[356111494,1741909923427,-509.45,0.00025465,3]
[356111495,1741909923437,-528.56,0.00025465,3]
[356111496,1741909923449,-803.83,0.00025465,3]
[356111497,1741909923460,-500.0,0.00025465,3]
[356111498,1741909923470,-500.0,0.00025465,3]
[356111499,1741909923480,-500.0,0.00025465,3]
[356111500,1741909923491,-1621.13,0.00025465,3]
[356111501,1741909923502,-684.37,0.00025465,3]
[356111502,1741909923512,-500.0,0.00025465,3]
[356111503,1741909923522,-3776.5,0.00025465,3]
[356111504,1741909923533,-500.0,0.00025465,3]
[356111505,1741909923543,-500.0,0.00025465,3]
[356111506,1741909923553,-568.39,0.00025465,3]
[356111507,1741909923562,-1817.75,0.00025465,3]
[356111508,1741909923572,-566.2623825,0.00025465,3]
[356111509,1741909923582,-1602.7,0.00025465,3]
[356111510,1741909923592,-500.0,0.00025465,3]
[356111511,1741909923602,-938.17,0.00025465,3]
[356111512,1741909923612,-1921.94,0.00025465,3]
[356111513,1741909923622,-728.56,0.00025465,3]
[356111514,1741909923632,-500.0,0.00025465,3]
[356111515,1741909923642,-515.11,0.00025465,3]
[356111516,1741909923651,-500.0,0.00025465,3]
[356111517,1741909923661,-519.89,0.00025465,3]
[356111518,1741909923670,-547.45,0.00025465,3]
[356111519,1741909923681,-1144.38,0.00025465,3]
[356111520,1741909923690,-1019.22,0.00025465,3]
[356111521,1741909923701,-500.0,0.00025465,3]
[356111522,1741909923711,-501.97,0.00025465,3]
[356111523,1741909923721,-742.8,0.00025465,3]
[356111524,1741909923730,-947.29,0.00025465,3]
[356111525,1741909923740,-500.0,0.00025465,3]
[356111526,1741909923750,-500.0,0.00025465,3]
[356111527,1741909923761,-1068.83,0.00025465,3]
[356111528,1741909923771,-1182.53,0.00025465,3]
[356111529,1741909923781,-1076.88,0.00025465,3]
[356111530,1741909923792,-433.78047151,0.00025485,2]
[356111531,1741909923802,-8154.50049837,0.00025488,2]
[356111532,1741909923812,-1771.49,0.00025491,3]
[356111533,1741909923822,-1290.76,0.00025491,3]
[356111534,1741909923832,-559.65,0.00025491,3]
[356111535,1741909923842,-1582.8,0.00025491,3]
[356111536,1741909923852,-500.0,0.00025491,3]
[356111537,1741909923861,-628.37,0.00025491,3]
[356111538,1741909923871,-3568.36,0.00025491,3]
[356111539,1741909923881,-561.46654719,0.00025491,3]
[356111540,1741909923891,-471.98204857,0.00025491,3]
[356111541,1741909923900,-534.48,0.00025491,3]
[356111542,1741909923911,-1267.72,0.00025491,3]
[356111543,1741909923920,-1652.9,0.00025491,3]
[356111544,1741909923930,-2343.56,0.00025491,3]
[356111545,1741909923940,-534.22,0.00025491,3]
[356111546,1741909923951,-855.84,0.00025491,3]
[356111547,1741909923961,-2980.86,0.00025491,3]
[356111548,1741909923972,-1751.29,0.00025491,3]
[356111549,1741909923982,-521.41,0.00025491,3]
[356111550,1741909923992,-1817.04,0.00025491,3]
[356111551,1741909924003,-578.8476377,0.00025491,3]
[356111552,1741909924013,-1529.79,0.00025491,3]
[356111553,1741909924023,-626.51,0.00025491,3]
[356111554,1741909924034,-1531.97,0.00025491,3]
[356111555,1741909924044,-1836.79,0.00025491,3]
[356111556,1741909924054,-647.08,0.00025491,3]
[356111557,1741909924064,-767.63,0.00025491,3]
[356111558,1741909924074,-2784.94,0.00025491,3]
[356111559,1741909924083,-972.39,0.00025491,3]
[356111560,1741909924093,-950.08,0.00025491,3]
[356111561,1741909924102,-1153.097042,0.00025491,3]
[356111562,1741909924112,-663.57,0.00025491,3]
[356111563,1741909924122,-638.89,0.00025491,3]
[356111564,1741909924132,-1612.27,0.00025491,3]
[356111565,1741909924142,-366.121728,0.00025491,3]
[356111566,1741909924151,-1194.86,0.00025491,3]
[356111567,1741909924161,-866.68,0.00025491,3]
[356111568,1741909924170,-542.19,0.00025491,3]
[356111569,1741909924180,-153.80157,0.00025491,3]
[356111570,1741909924190,-1909.43,0.00025491,3]
[356111571,1741909924200,-632.82,0.00025491,3]
[356111572,1741909924210,-503.16,0.00025491,3]
[356111573,1741909924219,-415.69479202,0.00025491,3]
[356111574,1741909924228,-957.65,0.00025491,3]
[356111575,1741909924237,-500.0,0.00025491,3]
[356111576,1741909924247,-686.97,0.00025491,3]
[356111577,1741909924257,-1718.94,0.00025491,3]
[356111578,1741909924267,-593.31,0.00025491,3]
[356111579,1741909924278,-573.42480629,0.00025491,3]
[356111580,1741909924288,-1023.55,0.00025491,3]
[356111581,1741909924297,-705.12,0.00025491,3]
[356111582,1741909924307,-1537.99,0.00025491,3]
[356111583,1741909924317,-500.0,0.00025491,3]
[356111584,1741909924327,-2081.77,0.00025491,3]
[356111585,1741909924336,-595.3,0.00025491,3]
[356111586,1741909924346,-500.0,0.00025491,3]
[356111587,1741909924356,-581.8,0.00025491,3]
[356111588,1741909924366,-2182.31,0.00025491,3]
[356111589,1741909924375,-1551.28,0.00025491,3]
[356111590,1741909924385,-1223.35,0.00025491,3]
[356111591,1741909924395,-705.21,0.00025491,3]
[356111592,1741909924404,-500.0,0.00025491,3]
[356111593,1741909924414,-500.0,0.00025491,3]
[356111594,1741909924424,-513.62,0.00025491,3]
[356111595,1741909924433,-575.64,0.00025491,3]
[356111596,1741909924443,-2382.43,0.00025491,3]
[356111597,1741909924456,-1703.64,0.00025491,3]
[356111598,1741909924466,-500.0,0.00025491,3]
[356111599,1741909924476,-500.0,0.00025491,3]
[356111600,1741909924486,-1633.72,0.00025491,3]
[356111601,1741909924497,-1670.95,0.00025491,3]
[356111602,1741909924507,-500.0,0.00025491,3]
[356111603,1741909924517,-3566.18,0.00025491,2]
[356111604,1741909924527,-2647.01,0.00025491,3]
[356111605,1741909924536,-694.85,0.00025491,3]
[356111606,1741909924546,-1632.96,0.00025491,3]
[356111607,1741909924556,-500.0,0.00025491,3]
[356111608,1741909924566,-1051.26,0.00025491,3]
[356111609,1741909924759,-703.55,0.00025491,3]
[356111610,1741909924770,-1726.02,0.00025491,3]
[356111611,1741909924780,-1847.97,0.00025491,3]
[356111612,1741909924789,-500.0,0.00025491,3]
[356111613,1741909924799,-1122.02,0.00025491,3]
[356111614,1741909924810,-1030.95,0.00025491,3]
[356111615,1741909924820,-547.84,0.00025491,3]
[356111616,1741909924830,-732.74,0.00025491,3]
[356111617,1741909924839,-685.17,0.00025491,3]
[356111618,1741909924848,-636.55,0.00025491,3]
[356111619,1741909924858,-500.0,0.00025491,3]
[356111620,1741909924868,-500.0,0.00025491,3]
[356111621,1741909924877,-666.39,0.00025491,3]
[356111622,1741909924887,-1136.63,0.00025491,3]
[356111623,1741909924896,-500.0,0.00025492,3]
[356111624,1741909924906,-1821.49,0.00025492,3]
[356111625,1741909924915,-500.0,0.00025492,3]
[356111626,1741909924925,-534.21,0.00025492,3]
[356111627,1741909924935,-721.07,0.00025492,3]
[356111628,1741909924944,-835.2,0.00025492,3]
[356111629,1741909924953,-500.0,0.00025492,3]
[356111630,1741909924963,-640.39,0.00025492,3]
[356111631,1741909924973,-500.0,0.00025492,3]
[356111632,1741909924983,-500.0,0.00025492,3]
[356111633,1741909924992,-1649.68,0.00025492,3]
[356111634,1741909925002,-602.71,0.00025492,3]
[356111635,1741909925012,-500.0,0.00025492,3]
[356111636,1741909925022,-500.0,0.00025492,3]
[356111637,1741909925031,-717.27,0.00025492,3]
[356111638,1741909925040,-938.73,0.00025492,3]
[356111639,1741909925050,-1058.89,0.00025492,3]
[356111640,1741909925059,-942.53,0.00025492,3]
[356111641,1741909925068,-578.57,0.00025492,3]
[356111642,1741909925078,-909.28,0.00025492,3]
[356111643,1741909925087,-618.61,0.00025492,3]
[356111644,1741909925096,-500.0,0.00025492,3]
[356111645,1741909925106,-500.0,0.00025492,3]
[356111646,1741909925115,-610.2,0.00025492,3]
[356111647,1741909925124,-500.0,0.00025492,3]
[356111648,1741909925134,-500.0,0.00025492,3]
[356111649,1741909925144,-500.0,0.00025492,3]
[356111650,1741909925154,-500.0,0.00025492,3]
[356111651,1741909925163,-1597.02,0.00025492,3]
[356111652,1741909925173,-1208.71,0.00025492,3]
[356111653,1741909925182,-500.0,0.00025492,3]
[356111654,1741909925192,-961.24,0.00025492,3]
[356111655,1741909925202,-500.0,0.00025492,3]
[356111656,1741909925211,-500.0,0.00025492,3]
[356111657,1741909925221,-945.98,0.00025492,3]
[356111658,1741909925229,-500.0,0.00025492,3]
[356111659,1741909925239,-599.05,0.00025492,3]
[356111660,1741909925248,-1322.8,0.00025492,3]
[356111661,1741909925260,-500.0,0.00025492,3]
[356111662,1741909925270,-500.0,0.00025492,3]
[356111663,1741909925279,-524.04,0.00025492,3]
[356111664,1741909925289,-500.0,0.00025492,3]
[356111665,1741909925298,-351.26759424,0.00025492,3]
[356111666,1741909925308,-1064.48,0.00025492,3]
[356111667,1741909925317,-1162.99,0.00025492,3]
[356111668,1741909925326,-2009.2,0.00025492,3]
[356111669,1741909925336,-1104.79,0.00025492,3]
[356111670,1741909925345,-1347.3,0.00025492,2]
[356111671,1741909925355,-1045.89,0.00025492,3]
[356111672,1741909925365,-1177.15,0.00025492,3]
[356111673,1741909925375,-1278.64,0.00025492,3]
[356111674,1741909925384,-1471.45,0.00025492,3]
[356111675,1741909925394,-500.0,0.00025492,3]
[356111676,1741909925404,-500.0,0.00025492,3]
[356111677,1741909925413,-500.0,0.00025492,3]
[356111678,1741909925423,-1032.31,0.00025492,3]
[356111679,1741909925432,-516.89,0.00025492,3]
[356111680,1741909925442,-1030.03,0.00025492,3]
[356111681,1741909925456,-500.0,0.00025492,3]
[356111682,1741909925466,-500.0,0.00025492,3]
[356111683,1741909925475,-520.87,0.00025492,3]
[356111684,1741909925485,-583.44,0.00025492,3]
[356111685,1741909925495,-500.0,0.00025492,3]
[356111686,1741909925504,-531.32,0.00025492,3]
[356111687,1741909925513,-549.11,0.00025492,3]
[356111688,1741909925523,-500.0,0.00025492,3]
[356111689,1741909925533,-665.05,0.00025492,3]
[356111690,1741909925543,-500.0,0.00025492,2]
[356111691,1741909925552,-1886.33,0.00025492,3]
[356111692,1741909925562,-500.0,0.00025492,3]
[356111693,1741909925571,-1603.3,0.00025492,3]
[356111694,1741909925581,-500.0,0.00025492,3]
[356111695,1741909925591,-1399.34,0.00025492,3]
[356111696,1741909925600,-507.55,0.00025492,3]
[356111697,1741909925610,-500.0,0.00025492,3]
[356111698,1741909925620,-500.0,0.00025492,3]
[356111699,1741909925629,-500.0,0.00025492,3]
[356111700,1741909925640,-1162.37,0.00025492,3]
[356111701,1741909925650,-503.04,0.00025492,3]
[356111702,1741909925660,-637.46,0.00025492,3]
[356111703,1741909925669,-500.0,0.00025492,3]
[356111704,1741909925679,-500.0,0.00025492,3]
[356111705,1741909925689,-500.0,0.00025492,3]
[356111706,1741909925698,-1799.26,0.00025492,3]
[356111707,1741909925707,-1038.47,0.00025492,3]
[356111708,1741909925717,-500.0,0.00025492,3]
[356111709,1741909925727,-500.0,0.00025492,3]
[356111710,1741909925736,-1488.89,0.00025492,3]
[356111711,1741909925745,-509.79,0.00025492,3]
[356111712,1741909925755,-1529.19,0.00025492,3]
[356111713,1741909925765,-1146.19,0.00025492,3]
[356111714,1741909925775,-1616.56,0.00025492,3]
[356111715,1741909925785,-1230.07,0.00025492,3]
[356111716,1741909925794,-500.0,0.00025492,3]
[356111717,1741909925803,-166.02,0.00025492,3]
[356111718,1741909925814,-564.98,0.00025492,3]
[356111719,1741909925823,-503.06,0.00025492,3]
[356111720,1741909925832,-828.77,0.00025492,3]
[356111721,1741909925842,-566.59,0.00025492,3]
[356111722,1741909925851,-766.89,0.00025492,3]
[356111723,1741909925861,-877.86,0.00025492,3]
[356111724,1741909925871,-1515.34,0.00025492,3]
[356111725,1741909925881,-500.0,0.00025492,3]
[356111726,1741909925892,-974.37,0.00025492,3]
[356111727,1741909925901,-637.9,0.00025492,3]
[356111728,1741909925911,-878.52,0.00025492,3]
[356111729,1741909925920,-500.0,0.00025492,3]
[356111730,1741909925930,-581.67,0.00025492,3]
[356111731,1741909925940,-1951.21,0.00025492,3]
[356111732,1741909925950,-500.0,0.00025492,3]
[356111733,1741909925959,-2023.2,0.00025492,3]
[356111734,1741909925968,-2022.67,0.00025492,3]
[356111735,1741909925978,-1071.52,0.00025492,3]
[356111736,1741909925988,-1319.48,0.00025492,3]
[356111737,1741909925999,-1318.79,0.00025492,3]
[356111738,1741909926009,-817.82,0.00025492,3]
[356111739,1741909926019,-1858.28,0.00025492,3]
[356111740,1741909926028,-500.0,0.00025492,3]
[356111741,1741909926038,-500.0,0.00025492,3]
[356111742,1741909926047,-1341.33,0.00025492,3]
[356111743,1741909926056,-500.0,0.00025492,3]
[356111744,1741909926065,-500.0,0.00025492,3]
[356111745,1741909926074,-1345.3,0.00025492,3]
[356111746,1741909926083,-500.0,0.00025492,2]
[356111747,1741909926093,-1005.07,0.00025492,3]
[356111748,1741909926102,-2009.8,0.00025492,3]
[356111749,1741909926111,-500.0,0.00025492,3]
[356111750,1741909926130,-500.0,0.00025492,3]
[356111751,1741909926145,-761.68,0.00025492,3]
[356111752,1741909926164,-1194.67,0.00025492,3]
[356111753,1741909926182,-1173.33,0.00025492,3]
[356111754,1741909926198,-3283.37,0.00025492,3]
[356111755,1741909926216,-500.0,0.00025492,3]
[356111756,1741909926234,-647.14,0.00025492,3]
[356111757,1741909926254,-610.98,0.00025492,3]
[356111758,1741909926273,-1389.09,0.00025492,3]
[356111759,1741909926290,-558.82,0.00025492,3]
[356111760,1741909926308,-535.09,0.00025492,3]
[356111761,1741909926321,-1705.22,0.00025492,3]
[356111762,1741909926340,-792.15,0.00025492,3]
[356111763,1741909926353,-1894.67,0.00025492,3]
[356111764,1741909926372,-1930.42,0.00025492,3]
[356111765,1741909926389,-573.45,0.00025492,3]
[356111766,1741909926404,-4252.22,0.00025492,3]
[356111767,1741909926419,-1350.01,0.00025492,3]
[356111768,1741909926435,-303.26390652,0.00025492,3]
[356111769,1741909926452,-957.24,0.00025492,3]
[356111770,1741909926470,-813.96,0.00025492,3]
[356111771,1741909926486,-500.0,0.00025492,3]
[356111772,1741909926503,-492.84,0.00025492,3]
[356111773,1741909926520,-500.0,0.00025492,3]
[356111774,1741909926536,-666.36,0.00025492,3]
[356111775,1741909926553,-1214.54,0.00025492,3]
[356111776,1741909926569,-659.78,0.00025492,3]
[356111777,1741909926585,-740.67,0.00025492,3]
[356111778,1741909926602,-255.03,0.00025492,3]
[356111779,1741909926619,-1011.7,0.00025492,3]
[356111780,1741909926634,-1446.01,0.00025492,3]
[356111781,1741909926650,-509.81,0.00025492,3]
[356111782,1741909926666,-500.0,0.00025492,3]
[356111783,1741909926681,-506.61,0.00025492,3]
[356111784,1741909926698,-1624.15,0.00025492,3]
[356111785,1741909926715,-1714.12,0.00025492,3]
[356111786,1741909926730,-1542.57,0.00025492,3]
[356111787,1741909926746,-1453.97,0.00025492,3]
[356111788,1741909926762,-679.28,0.00025492,3]
[356111789,1741909926779,-511.82,0.00025492,3]
[356111790,1741909926795,-732.6,0.00025492,3]
[356111791,1741909926811,-509.45,0.00025492,3]
[356111792,1741909926826,-528.56,0.00025492,3]
[356111793,1741909926843,-803.83,0.00025492,3]
[356111794,1741909926858,-500.0,0.00025492,3]
[356111795,1741909926873,-500.0,0.00025492,3]
[356111796,1741909926890,-500.0,0.00025492,3]
[356111797,1741909926906,-1621.13,0.00025492,3]
[356111798,1741909926921,-684.37,0.00025492,3]
[356111799,1741909926938,-500.0,0.00025492,3]
[356111800,1741909926953,-3776.5,0.00025492,3]
[356111801,1741909926967,-500.0,0.00025492,3]
[356111802,1741909926983,-500.0,0.00025492,3]
[356111803,1741909926999,-568.39,0.00025492,3]
[356111804,1741909927015,-1817.75,0.00025492,3]
[356111805,1741909927030,-1602.7,0.00025492,3]
[356111806,1741909927045,-500.0,0.00025492,3]
[356111807,1741909927061,-938.17,0.00025492,3]
[356111808,1741909927076,-1921.94,0.00025492,3]
[356111809,1741909927091,-728.56,0.00025492,3]
[356111810,1741909927106,-500.0,0.00025492,3]
[356111811,1741909927121,-515.11,0.00025492,3]
[356111812,1741909927136,-500.0,0.00025492,3]
[356111813,1741909927150,-519.89,0.00025492,3]
[356111814,1741909927165,-547.45,0.00025492,3]
[356111815,1741909927180,-1144.38,0.00025492,3]
[356111816,1741909927195,-1019.22,0.00025492,3]
[356111817,1741909927210,-233.9792138,0.00025492,3]
[356111818,1741909927224,-501.97,0.00025492,3]
[356111819,1741909927239,-742.8,0.00025492,3]
[356111820,1741909927254,-500.0,0.00025492,3]
[356111821,1741909927269,-947.29,0.00025492,3]
[356111822,1741909927284,-500.0,0.00025492,3]
[356111823,1741909927298,-1068.83,0.00025492,3]
[356111824,1741909927313,-1182.53,0.00025492,3]
[356111825,1741909927327,-1076.88,0.00025492,3]
[356111826,1741909927342,-1771.49,0.00025518,3]
[356111827,1741909927356,-1290.76,0.00025518,3]
[356111828,1741909927370,-559.65,0.00025518,3]
[356111829,1741909927386,-1582.8,0.00025518,3]
[356111830,1741909927401,-500.0,0.00025518,3]
[356111831,1741909927415,-628.37,0.00025518,3]
[356111832,1741909927430,-534.48,0.00025518,3]
[356111833,1741909927444,-1267.72,0.00025518,3]
[356111834,1741909927462,-1652.9,0.00025518,3]
[356111835,1741909927476,-2343.56,0.00025518,3]
[356111836,1741909927492,-534.22,0.00025518,3]
[356111837,1741909927507,-855.84,0.00025518,3]
[356111838,1741909927522,-1751.29,0.00025518,3]
[356111839,1741909927537,-521.41,0.00025518,3]
[356111840,1741909927551,-1817.04,0.00025518,3]
[356111841,1741909927566,-1529.79,0.00025518,3]
[356111842,1741909927582,-626.51,0.00025518,3]
[356111843,1741909927596,-1836.79,0.00025518,3]
[356111844,1741909927612,-647.08,0.00025518,3]
[356111845,1741909927628,-2784.94,0.00025518,3]
[356111846,1741909927642,-972.39,0.00025518,3]
[356111847,1741909927658,-950.08,0.00025518,3]
[356111848,1741909927673,-1153.097042,0.00025518,3]
[356111849,1741909927687,-663.57,0.00025518,3]
[356111850,1741909927702,-1612.27,0.00025518,3]
[356111851,1741909927718,-366.121728,0.00025518,3]
[356111852,1741909927732,-1194.86,0.00025518,3]
[356111853,1741909927748,-542.19,0.00025518,3]
[356111854,1741909927768,-632.82,0.00025518,3]
[356111855,1741909927783,-503.16,0.00025518,3]
[356111856,1741909927798,-152.872762,0.00025518,3]
[356111857,1741909927813,-221.29585352,0.00025518,3]
[356111858,1741909927828,-1718.94,0.00025518,3]
[356111859,1741909927844,-686.97,0.00025518,3]
[356111860,1741909927861,-593.31,0.00025518,3]
[356111861,1741909927877,-1023.55,0.00025518,3]
[356111862,1741909927892,-1537.99,0.00025518,3]
[356111863,1741909927907,-448.78055555,0.00025518,3]
[356111864,1741909927923,-2081.77,0.00025518,3]
[356111865,1741909927938,-595.3,0.00025518,3]
[356111866,1741909927953,-500.0,0.00025518,3]
[356111867,1741909927968,-2182.31,0.00025518,3]
[356111868,1741909927983,-1551.28,0.00025518,3]
[356111869,1741909927997,-705.21,0.00025518,3]
[356111870,1741909928013,-500.0,0.00025518,3]
[356111871,1741909928028,-500.0,0.00025518,3]
[356111872,1741909928043,-513.62,0.00025518,3]
[356111873,1741909928058,-575.64,0.00025518,3]
[356111874,1741909928073,-1703.64,0.00025518,3]
[356111875,1741909928089,-500.0,0.00025518,3]
[356111876,1741909928105,-500.0,0.00025518,3]
[356111877,1741909928120,-500.0,0.00025518,3]
[356111878,1741909928135,-3566.18,0.00025518,2]
[356111879,1741909928149,-2647.01,0.00025518,3]
[356111880,1741909928164,-694.85,0.00025518,3]
[356111881,1741909928179,-1632.96,0.00025518,3]
[356111882,1741909928194,-1051.26,0.00025518,3]
[356111883,1741909928209,-703.55,0.00025518,3]
[356111884,1741909928224,-500.0,0.00025518,3]
[356111885,1741909928239,-1122.02,0.00025518,3]
[356111886,1741909928254,-1030.95,0.00025518,3]
[356111887,1741909928595,-547.84,0.00025518,3]